[Event "Titled Tuesday Blitz March 21 Late 2023"]
[White "Poliakova, Varvara"]
[Black "Averjanov, Alexey"]
[WhiteFideId "13518313"]
[BlackFideId "14109867"]
[WhiteElo "2075"]
[BlackElo "2790"]
[Result "0-1"]
[Round "08"]
[TimeControl "180+2"]
[Date "2023.03.21"]
[WhiteClock "0:00:16"]
[BlackClock "0:00:28"]

1. e4 {[%clk 0:03:00]}  c6 {[%clk 0:02:59]} 2. d4 {[%clk 0:03:00]}  d5 {[%clk 0:03:00]} 3. Nd2 {[%clk 0:03:00]}  dxe4 {[%clk 0:03:00]} 4. Nxe4 {[%clk 0:03:01]}  Bf5 {[%clk 0:03:00]} 5. Ng3 {[%clk 0:03:01]}  Bg6 {[%clk 0:03:00]} 6. h4 {[%clk 0:03:02]}  h6 {[%clk 0:03:00]} 7. Nh3 {[%clk 0:03:01]}  Nf6 {[%clk 0:02:57]} 8. Nf4 {[%clk 0:03:00]}  Bh7 {[%clk 0:02:57]} 9. c3 {[%clk 0:03:00]}  e6 {[%clk 0:02:58]} 10. Bd3 {[%clk 0:02:58]}  Bxd3 {[%clk 0:02:57]} 11. Qxd3 {[%clk 0:02:58]}  Bd6 {[%clk 0:02:48]} 12. Nfh5 {[%clk 0:02:57]}  O-O {[%clk 0:02:46]} 13. Qf3 {[%clk 0:02:49]}  Nbd7 {[%clk 0:02:43]} 14. O-O {[%clk 0:02:45]}  Nxh5 {[%clk 0:02:38]} 15. Qxh5 {[%clk 0:02:46]}  Nf6 {[%clk 0:02:37]} 16. Qf3 {[%clk 0:02:46]}  Nd5 {[%clk 0:02:36]} 17. Qg4 {[%clk 0:02:35]}  Nf6 {[%clk 0:02:32]} 18. Qf3 {[%clk 0:02:34]}  Qe7 {[%clk 0:02:23]} 19. Re1 {[%clk 0:02:29]}  Bxg3 {[%clk 0:02:13]} 20. Qxg3 {[%clk 0:02:25]}  Kh7 {[%clk 0:02:08]} 21. Bd2 {[%clk 0:02:25]}  Rad8 {[%clk 0:02:03]} 22. Re5 {[%clk 0:02:25]}  Rd5 {[%clk 0:02:02]} 23. Rae1 {[%clk 0:02:25]}  Rfd8 {[%clk 0:02:01]} 24. f4 {[%clk 0:02:13]}  g6 {[%clk 0:01:49]} 25. f5 {[%clk 0:02:00]}  gxf5 {[%clk 0:01:43]} 26. Qe3 {[%clk 0:01:34]}  Ng4 {[%clk 0:01:40]} 27. Qf4 {[%clk 0:01:29]}  Rxe5 {[%clk 0:01:29]} 28. Rxe5 {[%clk 0:01:24]}  Qxh4 {[%clk 0:01:21]} 29. Re2 {[%clk 0:01:21]}  Rg8 {[%clk 0:01:17]} 30. Be1 {[%clk 0:01:14]}  Qh5 {[%clk 0:01:14]} 31. Rd2 {[%clk 0:01:04]}  Rg7 {[%clk 0:01:09]} 32. c4 {[%clk 0:00:59]}  Nf6 {[%clk 0:01:06]} 33. Qh2 {[%clk 0:00:47]}  Qg4 {[%clk 0:00:58]} 34. g3 {[%clk 0:00:23]}  Ne4 {[%clk 0:00:56]} 35. Re2 {[%clk 0:00:22]}  Nxg3 {[%clk 0:00:50]} 36. Bxg3 {[%clk 0:00:22]}  Qxg3+ {[%clk 0:00:50]} 37. Qxg3 {[%clk 0:00:23]}  Rxg3+ {[%clk 0:00:50]} 38. Kf2 {[%clk 0:00:23]}  Rd3 {[%clk 0:00:50]} 39. d5 {[%clk 0:00:20]}  cxd5 {[%clk 0:00:50]} 40. cxd5 {[%clk 0:00:20]}  Rxd5 {[%clk 0:00:51]} 41. Rc2 {[%clk 0:00:21]}  Rd7 {[%clk 0:00:48]} 42. Kf3 {[%clk 0:00:22]}  Kg6 {[%clk 0:00:48]} 43. Kf4 {[%clk 0:00:22]}  Kf6 {[%clk 0:00:44]} 44. Rh2 {[%clk 0:00:22]}  e5+ {[%clk 0:00:45]} 45. Ke3 {[%clk 0:00:22]}  f4+ {[%clk 0:00:40]} 46. Ke4 {[%clk 0:00:20]}  Rd4+ {[%clk 0:00:40]} 47. Kf3 {[%clk 0:00:21]}  Kg5 {[%clk 0:00:40]} 48. Rc2 {[%clk 0:00:19]}  e4+ {[%clk 0:00:38]} 49. Ke2 {[%clk 0:00:17]}  Rd3 {[%clk 0:00:34]} 50. Rc7 {[%clk 0:00:17]}  f3+ {[%clk 0:00:33]} 51. Kf2 {[%clk 0:00:17]}  f5 {[%clk 0:00:32]} 52. Kg3 {[%clk 0:00:15]}  f4+ {[%clk 0:00:31]} 53. Kf2 {[%clk 0:00:15]}  Rd2+ {[%clk 0:00:31]} 54. Ke1 {[%clk 0:00:15]}  e3 {[%clk 0:00:30]} 55. Kf1 {[%clk 0:00:16]}  Rd1# {[%clk 0:00:28]} 0-1


[Site "https://www.chess.com"]

[Event "Titled Tuesday Blitz March 21 Late 2023"]
[White "Postny, Evgeny"]
[Black "Riff, Vincent"]
[WhiteFideId "2804344"]
[BlackFideId "617776"]
[WhiteElo "2509"]
[BlackElo "2369"]
[Result "1-0"]
[Round "08"]
[TimeControl "180+2"]
[Date "2023.03.21"]
[WhiteClock "0:02:38"]
[BlackClock "0:02:18"]

1. e4 {[%clk 0:03:00]}  c5 {[%clk 0:02:59]} 2. Nf3 {[%clk 0:03:00]}  Nc6 {[%clk 0:03:00]} 3. d4 {[%clk 0:03:01]}  cxd4 {[%clk 0:03:00]} 4. Nxd4 {[%clk 0:03:01]}  e5 {[%clk 0:03:01]} 5. Nb5 {[%clk 0:03:01]}  d6 {[%clk 0:03:01]} 6. c4 {[%clk 0:03:01]}  Be7 {[%clk 0:03:00]} 7. N1c3 {[%clk 0:02:58]}  a6 {[%clk 0:03:00]} 8. Na3 {[%clk 0:02:59]}  f5 {[%clk 0:03:01]} 9. exf5 {[%clk 0:02:58]}  Bxf5 {[%clk 0:03:02]} 10. Bd3 {[%clk 0:02:59]}  Be6 {[%clk 0:03:01]} 11. Nc2 {[%clk 0:02:55]}  Nf6 {[%clk 0:03:01]} 12. O-O {[%clk 0:02:50]}  O-O {[%clk 0:03:01]} 13. Nd5 {[%clk 0:02:51]}  Kh8 {[%clk 0:02:49]} 14. Nce3 {[%clk 0:02:47]}  Bg8 {[%clk 0:02:48]} 15. b3 {[%clk 0:02:42]}  Nd4 {[%clk 0:02:47]} 16. Bb2 {[%clk 0:02:41]}  Nxd5 {[%clk 0:02:47]} 17. Nxd5 {[%clk 0:02:41]}  Bxd5 {[%clk 0:02:23]} 18. cxd5 {[%clk 0:02:42]}  Qb6 {[%clk 0:02:18]} 19. Qh5 {[%clk 0:02:38]} 1-0


[Site "https://www.chess.com"]

[Event "Titled Tuesday Blitz March 21 Late 2023"]
[White "Aldokhin, Ivan"]
[Black "Mendez Fortes, Eduardo Jesus"]
[WhiteFideId "24115720"]
[BlackFideId "3502376"]
[WhiteElo "2322"]
[BlackElo "2307"]
[Result "0-1"]
[Round "08"]
[TimeControl "180+2"]
[Date "2023.03.21"]
[WhiteClock "0:00:09"]
[BlackClock "0:01:18"]

1. e4 {[%clk 0:03:00]}  c5 {[%clk 0:02:58]} 2. Nf3 {[%clk 0:03:01]}  d6 {[%clk 0:02:58]} 3. d4 {[%clk 0:03:01]}  cxd4 {[%clk 0:02:59]} 4. Nxd4 {[%clk 0:03:02]}  Nf6 {[%clk 0:03:00]} 5. Nc3 {[%clk 0:03:02]}  a6 {[%clk 0:03:01]} 6. Bc4 {[%clk 0:03:02]}  e6 {[%clk 0:03:00]} 7. Bb3 {[%clk 0:03:03]}  b5 {[%clk 0:03:00]} 8. Qf3 {[%clk 0:03:02]}  Qb6 {[%clk 0:02:58]} 9. Be3 {[%clk 0:03:02]}  Qb7 {[%clk 0:02:58]} 10. O-O-O {[%clk 0:02:59]}  Be7 {[%clk 0:02:58]} 11. Qg3 {[%clk 0:02:55]}  O-O {[%clk 0:02:31]} 12. Bh6 {[%clk 0:02:54]}  Ne8 {[%clk 0:02:31]} 13. Rhe1 {[%clk 0:02:17]}  Nd7 {[%clk 0:02:15]} 14. Nd5 {[%clk 0:01:59]}  Nc5 {[%clk 0:02:07]} 15. Nxe7+ {[%clk 0:01:25]}  Qxe7 {[%clk 0:02:07]} 16. Bg5 {[%clk 0:01:16]}  Qc7 {[%clk 0:02:02]} 17. Qh4 {[%clk 0:01:04]}  f6 {[%clk 0:01:48]} 18. Bd2 {[%clk 0:01:03]}  Nxb3+ {[%clk 0:01:37]} 19. axb3 {[%clk 0:00:59]}  e5 {[%clk 0:01:31]} 20. Ne2 {[%clk 0:00:40]}  Be6 {[%clk 0:01:29]} 21. Kb1 {[%clk 0:00:32]}  a5 {[%clk 0:01:28]} 22. f4 {[%clk 0:00:31]}  a4 {[%clk 0:01:28]} 23. Bb4 {[%clk 0:00:13]}  axb3 {[%clk 0:01:26]} 24. cxb3 {[%clk 0:00:12]}  Bxb3 {[%clk 0:01:19]} 25. Qh3 {[%clk 0:00:09]}  Qc2# {[%clk 0:01:18]} 0-1


[Site "https://www.chess.com"]

[Event "Titled Tuesday Blitz March 21 Late 2023"]
[White "Gadimbayli, Abdulla"]
[Black "Mortazavi, Ali"]
[WhiteFideId "13404938"]
[BlackFideId "401323"]
[WhiteElo "2390"]
[BlackElo "2339"]
[Result "1-0"]
[Round "08"]
[TimeControl "180+2"]
[Date "2023.03.21"]
[WhiteClock "0:01:18"]
[BlackClock "0:00:16"]

1. Nf3 {[%clk 0:02:59]}  Nf6 {[%clk 0:02:39]} 2. g3 {[%clk 0:02:58]}  g6 {[%clk 0:02:39]} 3. Bg2 {[%clk 0:02:59]}  Bg7 {[%clk 0:02:40]} 4. O-O {[%clk 0:03:00]}  O-O {[%clk 0:02:40]} 5. d4 {[%clk 0:03:01]}  d6 {[%clk 0:02:41]} 6. Nc3 {[%clk 0:03:00]}  d5 {[%clk 0:02:39]} 7. Bf4 {[%clk 0:02:57]}  c6 {[%clk 0:02:38]} 8. h3 {[%clk 0:02:57]}  Bf5 {[%clk 0:02:32]} 9. Re1 {[%clk 0:02:56]}  Ne4 {[%clk 0:02:25]} 10. Nxe4 {[%clk 0:02:49]}  Bxe4 {[%clk 0:02:25]} 11. c3 {[%clk 0:02:49]}  Nd7 {[%clk 0:02:24]} 12. Qd2 {[%clk 0:02:47]}  Re8 {[%clk 0:02:21]} 13. Bh6 {[%clk 0:02:47]}  Bh8 {[%clk 0:02:21]} 14. Qf4 {[%clk 0:02:44]}  e5 {[%clk 0:02:10]} 15. dxe5 {[%clk 0:02:43]}  Nxe5 {[%clk 0:02:11]} 16. Rad1 {[%clk 0:02:39]}  Qb6 {[%clk 0:01:48]} 17. Qc1 {[%clk 0:02:10]}  Nxf3+ {[%clk 0:01:34]} 18. exf3 {[%clk 0:02:07]}  Bf5 {[%clk 0:01:32]} 19. Rxe8+ {[%clk 0:01:58]}  Rxe8 {[%clk 0:01:32]} 20. Re1 {[%clk 0:01:59]}  Qd8 {[%clk 0:01:17]} 21. Rxe8+ {[%clk 0:01:58]}  Qxe8 {[%clk 0:01:18]} 22. Qf4 {[%clk 0:01:59]}  Bf6 {[%clk 0:01:10]} 23. g4 {[%clk 0:01:20]}  Qe1+ {[%clk 0:01:09]} 24. Bf1 {[%clk 0:01:21]}  Be5 {[%clk 0:01:00]} 25. Qb4 {[%clk 0:01:21]}  Bg7 {[%clk 0:00:15]} 26. Bxg7 {[%clk 0:01:18]}  Kxg7 {[%clk 0:00:16]} 1-0


[Site "https://www.chess.com"]

[Event "Titled Tuesday Blitz March 21 Late 2023"]
[White "Skvortsov, Andrei"]
[Black "Piriflillo"]
[WhiteFideId "24108600"]
[WhiteElo "2259"]
[BlackElo "2442"]
[Result "1-0"]
[Round "08"]
[TimeControl "180+2"]
[Date "2023.03.21"]
[WhiteClock "0:01:01"]
[BlackClock "0:00:02"]

1. d4 {[%clk 0:03:00]}  Nf6 {[%clk 0:02:59]} 2. c4 {[%clk 0:03:00]}  e6 {[%clk 0:02:57]} 3. Nc3 {[%clk 0:02:59]}  Bb4 {[%clk 0:02:56]} 4. f3 {[%clk 0:02:57]}  O-O {[%clk 0:02:51]} 5. e4 {[%clk 0:02:54]}  d5 {[%clk 0:02:51]} 6. e5 {[%clk 0:02:51]}  Nfd7 {[%clk 0:02:45]} 7. cxd5 {[%clk 0:02:50]}  exd5 {[%clk 0:02:44]} 8. Bd3 {[%clk 0:02:51]}  c5 {[%clk 0:02:37]} 9. a3 {[%clk 0:02:46]}  cxd4 {[%clk 0:02:27]} 10. axb4 {[%clk 0:02:45]}  dxc3 {[%clk 0:02:26]} 11. f4 {[%clk 0:02:38]}  f6 {[%clk 0:02:04]} 12. e6 {[%clk 0:02:35]}  Re8 {[%clk 0:02:00]} 13. bxc3 {[%clk 0:02:29]}  Rxe6+ {[%clk 0:01:59]} 14. Kf1 {[%clk 0:02:29]}  Nf8 {[%clk 0:01:44]} 15. Nf3 {[%clk 0:02:28]}  Nc6 {[%clk 0:01:41]} 16. b5 {[%clk 0:02:28]}  Ne7 {[%clk 0:01:23]} 17. Nd4 {[%clk 0:02:29]}  Rd6 {[%clk 0:01:18]} 18. Qe2 {[%clk 0:02:12]}  Ne6 {[%clk 0:01:14]} 19. Nf3 {[%clk 0:01:49]}  Nc5 {[%clk 0:01:02]} 20. Ba3 {[%clk 0:01:43]}  b6 {[%clk 0:01:02]} 21. Bc2 {[%clk 0:01:42]}  Bf5 {[%clk 0:00:55]} 22. Nd4 {[%clk 0:01:38]}  Bxc2 {[%clk 0:00:52]} 23. Qxc2 {[%clk 0:01:37]}  Qd7 {[%clk 0:00:46]} 24. Re1 {[%clk 0:01:36]}  Nf5 {[%clk 0:00:39]} 25. Qxf5 {[%clk 0:01:31]}  Qc7 {[%clk 0:00:14]} 26. g3 {[%clk 0:01:20]}  Rdd8 {[%clk 0:00:11]} 27. Kg2 {[%clk 0:01:17]}  Ne4 {[%clk 0:00:09]} 28. Nc6 {[%clk 0:01:17]}  Re8 {[%clk 0:00:07]} 29. Qxd5+ {[%clk 0:01:16]}  Qf7 {[%clk 0:00:07]} 30. Qxf7+ {[%clk 0:01:15]}  Kxf7 {[%clk 0:00:07]} 31. Re3 {[%clk 0:01:14]}  a6 {[%clk 0:00:05]} 32. Bb4 {[%clk 0:01:02]}  axb5 {[%clk 0:00:04]} 33. Rhe1 {[%clk 0:01:02]}  Ra2+ {[%clk 0:00:04]} 34. R3e2 {[%clk 0:01:02]}  Rxe2+ {[%clk 0:00:03]} 35. Rxe2 {[%clk 0:01:03]}  Nc5 {[%clk 0:00:02]} 36. Rxe8 {[%clk 0:01:02]}  Kxe8 {[%clk 0:00:03]} 37. Nd4 {[%clk 0:01:02]}  Kd7 {[%clk 0:00:02]} 38. Nxb5 {[%clk 0:01:00]}  Kc6 {[%clk 0:00:02]} 39. Nd4+ {[%clk 0:01:01]}  Kd5 {[%clk 0:00:02]} 40. Nf5 {[%clk 0:01:01]}  g6 {[%clk 0:00:02]} 41. Ne3+ {[%clk 0:01:02]}  Ke4 {[%clk 0:00:02]} 42. Ng4 {[%clk 0:01:01]}  f5 {[%clk 0:00:01]} 43. Nf6+ {[%clk 0:01:01]}  Kd3 {[%clk 0:00:02]} 44. Nxh7 {[%clk 0:01:00]}  Ne4 {[%clk 0:00:03]} 45. Nf8 {[%clk 0:01:00]}  Nxc3 {[%clk 0:00:02]} 46. Nxg6 {[%clk 0:01:01]}  Nd5 {[%clk 0:00:03]} 47. Bd6 {[%clk 0:01:01]}  b5 {[%clk 0:00:03]} 48. Ne7 {[%clk 0:01:01]}  b4 {[%clk 0:00:01]} 49. Nxd5 {[%clk 0:01:01]}  b3 {[%clk 0:00:02]} 50. Be5 {[%clk 0:01:01]} 1-0


[Site "https://www.chess.com"]

[Event "Titled Tuesday Blitz March 21 Late 2023"]
[White "Lamard, Guillaume"]
[Black "Herrera Reyes, Jose Antonio"]
[WhiteFideId "600261"]
[BlackFideId "2274914"]
[WhiteElo "2413"]
[BlackElo "2273"]
[Result "1-0"]
[Round "08"]
[TimeControl "180+2"]
[Date "2023.03.21"]
[WhiteClock "0:01:20"]
[BlackClock "0:00:55"]

1. d4 {[%clk 0:03:00]}  Nf6 {[%clk 0:02:59]} 2. Bf4 {[%clk 0:02:59]}  c5 {[%clk 0:02:59]} 3. e3 {[%clk 0:02:58]}  g6 {[%clk 0:02:58]} 4. Nf3 {[%clk 0:02:51]}  Bg7 {[%clk 0:02:58]} 5. c3 {[%clk 0:02:47]}  O-O {[%clk 0:02:59]} 6. dxc5 {[%clk 0:02:47]}  a5 {[%clk 0:02:58]} 7. a4 {[%clk 0:02:40]}  Na6 {[%clk 0:02:58]} 8. Bxa6 {[%clk 0:02:40]}  Rxa6 {[%clk 0:02:56]} 9. Nbd2 {[%clk 0:02:40]}  Rc6 {[%clk 0:02:53]} 10. Nb3 {[%clk 0:02:37]}  b6 {[%clk 0:02:44]} 11. Nfd4 {[%clk 0:02:34]}  Rxc5 {[%clk 0:02:37]} 12. Nxc5 {[%clk 0:02:34]}  bxc5 {[%clk 0:02:38]} 13. Nb5 {[%clk 0:02:32]}  d6 {[%clk 0:02:37]} 14. O-O {[%clk 0:02:32]}  Bb7 {[%clk 0:02:37]} 15. Bg3 {[%clk 0:02:25]}  Ne4 {[%clk 0:02:36]} 16. f3 {[%clk 0:02:22]}  Nxg3 {[%clk 0:02:33]} 17. hxg3 {[%clk 0:02:23]}  Qb6 {[%clk 0:02:30]} 18. Qe2 {[%clk 0:02:14]}  h5 {[%clk 0:02:29]} 19. Rad1 {[%clk 0:02:07]}  Be5 {[%clk 0:02:29]} 20. f4 {[%clk 0:02:05]}  Bf6 {[%clk 0:02:29]} 21. g4 {[%clk 0:02:05]}  hxg4 {[%clk 0:02:28]} 22. Qxg4 {[%clk 0:02:05]}  Kg7 {[%clk 0:02:27]} 23. Kf2 {[%clk 0:01:55]}  Qc6 {[%clk 0:02:19]} 24. Rh1 {[%clk 0:01:51]}  Qe4 {[%clk 0:01:48]} 25. Rd2 {[%clk 0:01:39]}  Bc8 {[%clk 0:01:34]} 26. Qf3 {[%clk 0:01:37]}  Qxa4 {[%clk 0:01:34]} 27. Nc7 {[%clk 0:01:33]}  Rh8 {[%clk 0:01:04]} 28. Rxh8 {[%clk 0:01:30]}  Kxh8 {[%clk 0:01:05]} 29. Nd5 {[%clk 0:01:27]}  Bb7 {[%clk 0:00:56]} 30. Qh3+ {[%clk 0:01:25]}  Kg7 {[%clk 0:00:57]} 31. Nxf6 {[%clk 0:01:25]}  Kxf6 {[%clk 0:00:57]} 32. Qh4+ {[%clk 0:01:24]}  Ke6 {[%clk 0:00:55]} 33. f5+ {[%clk 0:01:20]} 1-0


[Site "https://www.chess.com"]

[Event "Titled Tuesday Blitz March 21 Late 2023"]
[White "Wang, Alexander J"]
[Black "Kurtz, Eric M"]
[WhiteFideId "30955270"]
[BlackFideId "30939763"]
[WhiteElo "2294"]
[BlackElo "2629"]
[Result "0-1"]
[Round "08"]
[TimeControl "180+2"]
[Date "2023.03.21"]
[WhiteClock "0:00:08"]
[BlackClock "0:00:20"]

1. e4 {[%clk 0:03:00]}  d6 {[%clk 0:02:58]} 2. d4 {[%clk 0:03:00]}  Nf6 {[%clk 0:02:53]} 3. Nc3 {[%clk 0:03:00]}  g6 {[%clk 0:02:52]} 4. Nf3 {[%clk 0:02:59]}  Bg7 {[%clk 0:02:51]} 5. Be2 {[%clk 0:02:57]}  O-O {[%clk 0:02:52]} 6. Be3 {[%clk 0:02:57]}  c6 {[%clk 0:02:52]} 7. h3 {[%clk 0:02:55]}  Qc7 {[%clk 0:02:52]} 8. a4 {[%clk 0:02:54]}  Nbd7 {[%clk 0:02:51]} 9. O-O {[%clk 0:02:54]}  b6 {[%clk 0:02:46]} 10. d5 {[%clk 0:02:52]}  a6 {[%clk 0:02:42]} 11. Bc4 {[%clk 0:02:41]}  Bb7 {[%clk 0:02:40]} 12. Bg5 {[%clk 0:02:34]}  cxd5 {[%clk 0:02:37]} 13. Bxd5 {[%clk 0:02:32]}  Rfe8 {[%clk 0:02:25]} 14. Re1 {[%clk 0:02:26]}  Rac8 {[%clk 0:02:25]} 15. Qd2 {[%clk 0:02:24]}  Nc5 {[%clk 0:01:53]} 16. Rad1 {[%clk 0:02:05]}  Rcd8 {[%clk 0:01:52]} 17. Qe2 {[%clk 0:01:56]}  e6 {[%clk 0:01:51]} 18. Bc4 {[%clk 0:01:48]}  h6 {[%clk 0:01:49]} 19. Bf4 {[%clk 0:01:45]}  Nfxe4 {[%clk 0:01:36]} 20. Nxe4 {[%clk 0:01:41]}  Nxe4 {[%clk 0:01:36]} 21. Bxa6 {[%clk 0:01:37]}  Nc5 {[%clk 0:01:23]} 22. Bb5 {[%clk 0:01:32]}  Bc6 {[%clk 0:01:21]} 23. b4 {[%clk 0:01:26]}  Nxa4 {[%clk 0:01:13]} 24. Bxa4 {[%clk 0:01:14]}  Bxa4 {[%clk 0:01:10]} 25. Rc1 {[%clk 0:01:12]}  e5 {[%clk 0:01:09]} 26. Be3 {[%clk 0:01:10]}  d5 {[%clk 0:01:07]} 27. c3 {[%clk 0:01:06]}  Bb3 {[%clk 0:01:05]} 28. Qd2 {[%clk 0:01:02]}  Kh7 {[%clk 0:01:03]} 29. Rb1 {[%clk 0:01:00]}  Bc4 {[%clk 0:01:03]} 30. Ra1 {[%clk 0:00:56]}  Ra8 {[%clk 0:01:01]} 31. Qb2 {[%clk 0:00:55]}  f5 {[%clk 0:00:59]} 32. Rxa8 {[%clk 0:00:54]}  Rxa8 {[%clk 0:01:00]} 33. Ra1 {[%clk 0:00:54]}  Rxa1+ {[%clk 0:00:59]} 34. Qxa1 {[%clk 0:00:55]}  Be2 {[%clk 0:00:53]} 35. Ne1 {[%clk 0:00:50]}  f4 {[%clk 0:00:50]} 36. Bd2 {[%clk 0:00:49]}  e4 {[%clk 0:00:50]} 37. Qc1 {[%clk 0:00:46]}  g5 {[%clk 0:00:46]} 38. Qa3 {[%clk 0:00:36]}  Kg6 {[%clk 0:00:39]} 39. Qa8 {[%clk 0:00:36]}  Bb5 {[%clk 0:00:37]} 40. Qxd5 {[%clk 0:00:34]}  Qc4 {[%clk 0:00:35]} 41. Qd6+ {[%clk 0:00:27]}  Bf6 {[%clk 0:00:35]} 42. Kh2 {[%clk 0:00:23]}  Qe2 {[%clk 0:00:31]} 43. Qd5 {[%clk 0:00:15]}  Bc4 {[%clk 0:00:20]} 44. Qd6 {[%clk 0:00:10]}  e3 {[%clk 0:00:20]} 45. fxe3 {[%clk 0:00:09]}  fxe3 {[%clk 0:00:21]} 46. Nf3 {[%clk 0:00:08]}  exd2 {[%clk 0:00:20]} 47. Ne5+ {[%clk 0:00:08]}  Qxe5+ {[%clk 0:00:20]} 0-1


[Site "https://www.chess.com"]

[Event "Titled Tuesday Blitz March 21 Late 2023"]
[White "Lauridsen, Jesper Morch"]
[Black "Szente Varga, Fruzsina"]
[WhiteFideId "1401890"]
[BlackFideId "712264"]
[WhiteElo "2290"]
[BlackElo "1994"]
[Result "0-1"]
[Round "08"]
[TimeControl "180+2"]
[Date "2023.03.21"]
[WhiteClock "0:00:04"]
[BlackClock "0:00:23"]

1. e4 {[%clk 0:03:00]}  Nf6 {[%clk 0:02:56]} 2. e5 {[%clk 0:03:00]}  Nd5 {[%clk 0:02:56]} 3. d4 {[%clk 0:03:00]}  d6 {[%clk 0:02:56]} 4. Nf3 {[%clk 0:03:00]}  g6 {[%clk 0:02:57]} 5. Bc4 {[%clk 0:03:00]}  c6 {[%clk 0:02:57]} 6. Bb3 {[%clk 0:02:59]}  Bg7 {[%clk 0:02:57]} 7. c4 {[%clk 0:02:55]}  Nb6 {[%clk 0:02:57]} 8. Nc3 {[%clk 0:02:50]}  O-O {[%clk 0:02:57]} 9. h3 {[%clk 0:02:41]}  dxe5 {[%clk 0:02:51]} 10. Nxe5 {[%clk 0:02:36]}  Qc7 {[%clk 0:02:49]} 11. Bf4 {[%clk 0:02:33]}  Qd8 {[%clk 0:02:33]} 12. O-O {[%clk 0:02:31]}  N8d7 {[%clk 0:02:33]} 13. c5 {[%clk 0:02:19]}  Nxe5 {[%clk 0:02:29]} 14. dxe5 {[%clk 0:02:15]}  Nd7 {[%clk 0:02:25]} 15. e6 {[%clk 0:02:09]}  Nxc5 {[%clk 0:02:21]} 16. exf7+ {[%clk 0:02:05]}  Kh8 {[%clk 0:02:22]} 17. Qc2 {[%clk 0:01:49]}  Bf5 {[%clk 0:02:16]} 18. Qe2 {[%clk 0:01:40]}  Nxb3 {[%clk 0:02:10]} 19. axb3 {[%clk 0:01:40]}  Rxf7 {[%clk 0:02:10]} 20. Rfd1 {[%clk 0:01:34]}  Qb6 {[%clk 0:02:07]} 21. Be5 {[%clk 0:01:28]}  Raf8 {[%clk 0:01:52]} 22. g4 {[%clk 0:01:19]}  Bc8 {[%clk 0:00:58]} 23. Bxg7+ {[%clk 0:01:18]}  Kxg7 {[%clk 0:00:58]} 24. Ne4 {[%clk 0:01:10]}  Qxb3 {[%clk 0:00:53]} 25. Ng5 {[%clk 0:01:07]}  Rxf2 {[%clk 0:00:20]} 26. Qxe7+ {[%clk 0:01:00]}  Kh6 {[%clk 0:00:20]} 27. Ne4 {[%clk 0:00:26]}  R2f7 {[%clk 0:00:12]} 28. g5+ {[%clk 0:00:15]}  Kg7 {[%clk 0:00:12]} 29. Qe5+ {[%clk 0:00:15]}  Kg8 {[%clk 0:00:11]} 30. Nf6+ {[%clk 0:00:14]}  Rxf6 {[%clk 0:00:12]} 31. gxf6 {[%clk 0:00:14]}  Bxh3 {[%clk 0:00:12]} 32. Re1 {[%clk 0:00:09]}  Qb6+ {[%clk 0:00:12]} 33. Qe3 {[%clk 0:00:08]}  Qxe3+ {[%clk 0:00:10]} 34. Rxe3 {[%clk 0:00:07]}  Bf5 {[%clk 0:00:11]} 35. Re5 {[%clk 0:00:07]}  Rxf6 {[%clk 0:00:11]} 36. Rxa7 {[%clk 0:00:07]}  Rf7 {[%clk 0:00:11]} 37. Re8+ {[%clk 0:00:07]}  Kg7 {[%clk 0:00:12]} 38. Rb8 {[%clk 0:00:08]}  b5 {[%clk 0:00:09]} 39. Rxf7+ {[%clk 0:00:07]}  Kxf7 {[%clk 0:00:10]} 40. Rb7+ {[%clk 0:00:07]}  Kf6 {[%clk 0:00:11]} 41. Rxh7 {[%clk 0:00:06]}  g5 {[%clk 0:00:11]} 42. Rc7 {[%clk 0:00:06]}  Be4 {[%clk 0:00:11]} 43. Kf2 {[%clk 0:00:06]}  Kf5 {[%clk 0:00:12]} 44. Ke3 {[%clk 0:00:07]}  Bd5 {[%clk 0:00:12]} 45. Re7 {[%clk 0:00:06]}  g4 {[%clk 0:00:12]} 46. Re8 {[%clk 0:00:06]}  g3 {[%clk 0:00:13]} 47. Rf8+ {[%clk 0:00:06]}  Ke6 {[%clk 0:00:13]} 48. Rg8 {[%clk 0:00:05]}  g2 {[%clk 0:00:13]} 49. Kf2 {[%clk 0:00:05]}  Kd6 {[%clk 0:00:14]} 50. b4 {[%clk 0:00:05]}  Ke5 {[%clk 0:00:14]} 51. Rg4 {[%clk 0:00:05]}  Kf5 {[%clk 0:00:14]} 52. Rd4 {[%clk 0:00:04]}  Ke5 {[%clk 0:00:15]} 53. Rg4 {[%clk 0:00:04]}  Be4 {[%clk 0:00:15]} 54. Rg5+ {[%clk 0:00:04]}  Kd4 {[%clk 0:00:15]} 55. Rc5 {[%clk 0:00:04]}  Bd5 {[%clk 0:00:15]} 56. Rc1 {[%clk 0:00:04]}  Kd3 {[%clk 0:00:15]} 57. Kg1 {[%clk 0:00:03]}  Kd2 {[%clk 0:00:16]} 58. Rc5 {[%clk 0:00:03]}  Ke3 {[%clk 0:00:16]} 59. Rc3+ {[%clk 0:00:02]}  Kf4 {[%clk 0:00:16]} 60. Rc4+ {[%clk 0:00:02]}  Ke5 {[%clk 0:00:16]} 61. Rc5 {[%clk 0:00:03]}  Kd4 {[%clk 0:00:17]} 62. Rc1 {[%clk 0:00:03]}  Kd3 {[%clk 0:00:17]} 63. Rd1+ {[%clk 0:00:03]}  Kc4 {[%clk 0:00:17]} 64. Rc1+ {[%clk 0:00:04]}  Kxb4 {[%clk 0:00:18]} 65. Rc2 {[%clk 0:00:04]}  Bc4 {[%clk 0:00:18]} 66. Rxg2 {[%clk 0:00:03]}  c5 {[%clk 0:00:18]} 67. Kf2 {[%clk 0:00:04]}  Bd5 {[%clk 0:00:17]} 68. Rg3 {[%clk 0:00:04]}  c4 {[%clk 0:00:18]} 69. Ke1 {[%clk 0:00:04]}  Be4 {[%clk 0:00:18]} 70. Kd2 {[%clk 0:00:04]}  Bd3 {[%clk 0:00:19]} 71. Kc1 {[%clk 0:00:04]}  Kb3 {[%clk 0:00:19]} 72. Rf3 {[%clk 0:00:04]}  Kc3 {[%clk 0:00:19]} 73. Re3 {[%clk 0:00:04]}  b4 {[%clk 0:00:20]} 74. Rg3 {[%clk 0:00:04]}  b3 {[%clk 0:00:21]} 75. Rg2 {[%clk 0:00:04]}  Kb4 {[%clk 0:00:21]} 76. Kd2 {[%clk 0:00:02]}  b2 {[%clk 0:00:20]} 77. Rg1 {[%clk 0:00:02]}  b1=Q {[%clk 0:00:21]} 78. Rxb1+ {[%clk 0:00:02]}  Bxb1 {[%clk 0:00:21]} 79. Kc1 {[%clk 0:00:02]}  Bh7 {[%clk 0:00:22]} 80. Kb2 {[%clk 0:00:03]}  c3+ {[%clk 0:00:23]} 81. Ka2 {[%clk 0:00:03]}  Kc4 {[%clk 0:00:22]} 82. Ka1 {[%clk 0:00:03]}  Kd3 {[%clk 0:00:22]} 83. Ka2 {[%clk 0:00:03]}  c2 {[%clk 0:00:22]} 84. Kb2 {[%clk 0:00:04]}  Kd2 {[%clk 0:00:22]} 85. Kb3 {[%clk 0:00:04]}  c1=Q {[%clk 0:00:23]} 0-1


[Site "https://www.chess.com"]